fUST/lending_fUST_20250408
["ID","MTS","AMOUNT","RATE_DAILY","PERIOD"]
[357493061,1744087840221,-152.13772553,0.00020537,2]
[357493063,1744087840230,-500.0,0.00020537,2]
[357493065,1744087840240,-500.0,0.00020537,2]
[357493066,1744087840250,-708.25,0.00020537,2]
[357493069,1744087840260,-857.15,0.00020537,2]
[357493071,1744087840270,-390.41843553,0.00020537,2]
[357493073,1744087840280,-543.50973022,0.00020537,2]
[357493075,1744087840289,-500.0,0.00020537,2]
[357493076,1744087840299,-260.21501903,0.00020537,2]
[357493078,1744087840308,-500.0,0.00020537,2]
[357493080,1744087840318,-500.0,0.00020537,2]
[357493082,1744087840327,-500.0,0.00020537,2]
[357493084,1744087840337,-915.7,0.00020537,2]
[357493086,1744087840346,-500.0,0.00020537,2]
[357493088,1744087840356,-500.0,0.00020537,2]
[357493091,1744087840366,-500.0,0.00020537,2]
[357493092,1744087840376,-500.0,0.00020537,2]
[357493095,1744087840387,-500.0,0.00020537,2]
[357493097,1744087840396,-500.0,0.00020537,2]
[357493099,1744087840406,-500.0,0.00020537,2]
[357493101,1744087840415,-500.0,0.00020537,2]
[357493103,1744087840425,-500.0,0.00020537,2]
[357493105,1744087840435,-500.0,0.00020537,2]
[357493106,1744087840444,-500.0,0.00020537,2]
[357493108,1744087840454,-500.0,0.00020537,2]
[357493109,1744087840463,-500.0,0.00020537,2]
[357493112,1744087840474,-500.0,0.00020537,2]
[357493114,1744087840484,-500.0,0.00020537,2]
[357493115,1744087840494,-1081.61,0.00020537,2]
[357493117,1744087840504,-500.0,0.00020537,2]
[357493119,1744087840514,-500.0,0.00020537,2]
[357493120,1744087840524,-500.0,0.00020537,2]
[357493122,1744087840533,-882.13,0.00020537,2]
[357493123,1744087840543,-836.88,0.00020537,2]
[357493125,1744087840553,-553.71,0.00020537,2]
[357493127,1744087840563,-500.0,0.00020537,2]
[357493128,1744087840572,-500.0,0.00020537,2]
[357493130,1744087840582,-501.8282301,0.00020537,2]
[357493132,1744087840591,-870.38,0.00020537,2]
[357493133,1744087840601,-249.05685914,0.00020537,2]
[357493147,1744087840748,-219.17984419,0.00019987,2]
[357493186,1744087840988,-219.17984419,0.00019987,2]
[357493195,1744087841029,-61.64031162,0.00019987,2]
[357493198,1744087841039,-500.0,0.00019987,2]
[357493202,1744087841049,-500.0,0.00020261,2]
[357493205,1744087841059,-500.0,0.00020535,2]
[357493208,1744087841068,-250.94314086,0.00020537,2]
[357493211,1744087841078,-500.0,0.00020537,2]
[357493214,1744087841091,-966.82,0.00020537,2]
[357493217,1744087841101,-500.0,0.00020537,2]
[357493220,1744087841110,-958.48,0.00020537,2]
[357493222,1744087841120,-500.0,0.00020537,2]
[357493226,1744087841131,-500.0,0.00020537,2]
[357493229,1744087841143,-3050.94,0.00020537,2]
[357493232,1744087841159,-500.0,0.00020537,2]
[357493234,1744087841168,-500.0,0.00020537,2]
[357493238,1744087841178,-500.0,0.00020537,2]
[357493241,1744087841188,-500.0,0.00020537,2]
[357493244,1744087841197,-500.1809741,0.00020537,2]
[357493247,1744087841210,-500.0,0.00020537,2]
[357493250,1744087841226,-500.0,0.00020537,2]
[357493252,1744087841241,-500.0,0.00020537,2]
[357493255,1744087841251,-500.0,0.00020537,2]
[357493259,1744087841262,-500.0,0.00020537,2]
[357493261,1744087841272,-500.0,0.00020537,2]
[357493264,1744087841283,-533.18,0.00020537,2]
[357493267,1744087841292,-500.0,0.00020537,2]
[357493270,1744087841302,-500.0,0.00020537,2]
[357493273,1744087841311,-844.73,0.00020537,2]
[357493276,1744087841321,-1629.74,0.00020537,2]
[357493279,1744087841330,-500.0,0.00020537,2]
[357493281,1744087841339,-531.16030074,0.00020537,2]
[357493284,1744087841349,-500.0,0.00020537,2]
[357493287,1744087841358,-500.0,0.00020537,2]
[357493290,1744087841367,-500.0,0.00020537,2]
[357493293,1744087841376,-537.34,0.00020537,2]
[357493296,1744087841386,-900.42,0.00020537,2]
[357493299,1744087841395,-500.0,0.00020537,2]
[357493302,1744087841405,-500.0,0.00020537,2]
[357493305,1744087841414,-500.0,0.00020537,2]
[357493308,1744087841423,-500.0,0.00020537,2]
[357493311,1744087841432,-151.0,0.00020554,2]
[357493314,1744087841442,-200.0,0.00020554,2]
[357493316,1744087841451,-370000.0,0.00020566,2]
[357493319,1744087841461,-156.16501903,0.00020573,2]
[357493322,1744087841470,-500.74984166,0.00020573,2]
[357493325,1744087841479,-500.0,0.00020573,2]
[357493327,1744087841488,-500.0,0.00020573,2]
[357493329,1744087841497,-500.0,0.00020573,2]
[357493331,1744087841506,-500.0,0.00020573,2]
[357493333,1744087841515,-314.77784455,0.00020573,2]
[357493335,1744087841524,-500.0,0.00020573,2]
[357493337,1744087841534,-501.74218858,0.00020573,2]
[357493339,1744087841543,-648.83318366,0.00020573,2]
[357493341,1744087841552,-415.60656253,0.00020574,2]
[357493343,1744087841561,-508.32304193,0.00020666,2]
[357493345,1744087841570,-500.0,0.00020666,2]
[357493347,1744087841579,-509.59668652,0.00020666,2]
[357493349,1744087841589,-356.85876344,0.00020666,2]
[357493351,1744087841599,-500.0,0.00020666,2]
[357493353,1744087841608,-500.0,0.00020666,2]
[357493355,1744087841617,-500.0,0.00020666,2]
[357493357,1744087841627,-500.0,0.00020666,2]
[357493359,1744087841636,-500.0,0.00020666,2]
[357493361,1744087841646,-500.0,0.00020666,2]
[357493362,1744087841655,-500.0,0.00020666,2]
[357493365,1744087841664,-500.0,0.00020666,2]
[357493366,1744087841673,-500.0,0.00020666,2]
[357493368,1744087841683,-500.0,0.00020666,2]
[357493370,1744087841692,-500.0,0.00020666,2]
[357493372,1744087841701,-500.0,0.00020666,2]
[357493374,1744087841710,-262.72969103,0.00020666,2]
[357493376,1744087841720,-500.0,0.00020666,2]
[357493378,1744087841729,-360.22815423,0.00020666,2]
[357493380,1744087841738,-500.0,0.00020667,2]
[357493382,1744087841747,-500.0,0.00020667,2]
[357493385,1744087841758,-785.79,0.00020667,2]
[357493387,1744087841767,-557.72733554,0.00020667,2]
[357493388,1744087841776,-500.0,0.00020667,2]
[357493390,1744087841786,-237.39913721,0.00020667,2]
[357493392,1744087841795,-547.65847733,0.00020667,2]
[357493395,1744087841805,-563.16641936,0.00020667,2]
[357493396,1744087841814,-500.0,0.00020667,2]
[357493398,1744087841824,-500.0,0.00020667,2]
[357493400,1744087841834,-500.0,0.00020667,2]
[357493402,1744087841843,-415.60656253,0.0002078,2]
[357493404,1744087841852,-500.0,0.00020808,2]
[357493406,1744087841862,-3144.01,0.00020808,2]
[357493408,1744087841871,-1236.86,0.00020808,2]
[357493410,1744087841881,-500.0,0.00020808,2]
[357493412,1744087841890,-500.0,0.00020809,2]
[357493415,1744087841900,-500.0,0.00020809,2]
[357493416,1744087841909,-939.52,0.00020809,2]
[357493418,1744087841918,-500.0,0.00020809,2]
[357493420,1744087841928,-500.0,0.00020809,2]
[357493422,1744087841937,-500.0,0.00020809,2]
[357493424,1744087841946,-500.0,0.00020809,2]
[357493426,1744087841955,-1149.36,0.00020809,2]
[357493428,1744087841965,-500.0,0.00020809,2]
[357493430,1744087841975,-500.0,0.00020809,2]
[357493432,1744087841984,-500.0,0.00020809,2]
[357493434,1744087841994,-500.0,0.00020809,2]
[357493437,1744087842004,-563.07982288,0.00020809,2]
[357493439,1744087842013,-3874.23,0.00020809,2]
[357493441,1744087842023,-1064.06,0.00020809,2]
[357493442,1744087842032,-500.0,0.00020809,2]
[357493444,1744087842041,-500.0,0.00020809,2]
[357493446,1744087842051,-500.0,0.00020809,2]
[357493448,1744087842060,-1472.0,0.00020809,2]
[357493450,1744087842070,-1466.85,0.00020809,2]
[357493453,1744087842082,-892.51,0.00020809,2]
[357493454,1744087842093,-500.0,0.00020809,2]
[357493456,1744087842102,-830.18,0.00020809,2]
[357493458,1744087842112,-2153.98,0.00020809,2]
[357493460,1744087842121,-500.0,0.00020809,2]
[357493462,1744087842132,-500.0,0.00020809,2]
[357493464,1744087842141,-534.8,0.00020809,2]
[357493466,1744087842150,-1442.99,0.00020809,2]
[357493468,1744087842160,-500.0,0.00020809,2]
[357493470,1744087842170,-1725.72,0.00020809,2]
[357493472,1744087842180,-500.0,0.00020809,2]
[357493474,1744087842190,-500.0,0.00020809,2]
[357493493,1744087842362,-500.0,0.00020809,2]
[357493495,1744087842373,-27778.79145235,0.0002081,3]
[357493497,1744087842384,-49021.13081438,0.0002081,2]
[357493499,1744087842393,-837.41003169,0.0002081,3]
[357493501,1744087842403,-12530.86563381,0.0002081,3]
[357493503,1744087842413,-500.0,0.0002081,2]
[357493505,1744087842422,-500.0,0.0002081,2]
[357493507,1744087842431,-503.38,0.0002081,2]
[357493509,1744087842441,-500.0,0.0002081,2]
[357493511,1744087842450,-500.0,0.0002081,2]
[357493513,1744087842460,-500.0,0.0002081,2]
[357493515,1744087842469,-500.0,0.0002081,2]
[357493517,1744087842479,-579.07,0.0002081,2]
[357493519,1744087842488,-671.91,0.0002081,2]
[357493521,1744087842498,-500.0,0.0002081,2]
[357493523,1744087842507,-500.0,0.0002081,2]
[357493525,1744087842516,-500.0,0.0002081,2]
[357493527,1744087842526,-500.0,0.0002081,2]
[357493529,1744087842535,-500.0,0.0002081,2]
[357493531,1744087842545,-500.0,0.0002081,2]
[357493533,1744087842554,-500.0,0.0002081,2]
[357493535,1744087842564,-500.0,0.0002081,2]
[357493537,1744087842574,-500.0,0.0002081,2]
[357493539,1744087842584,-500.0,0.0002081,2]
[357493541,1744087842595,-500.0,0.0002081,2]
[357493543,1744087842605,-500.0,0.0002081,2]
[357493545,1744087842615,-500.0,0.0002081,2]
[357493547,1744087842626,-500.0,0.0002081,2]
[357493549,1744087842637,-1732.52,0.0002081,2]
[357493551,1744087842647,-2224.87,0.0002081,2]
[357493553,1744087842658,-538.24365617,0.0002081,2]
[357493555,1744087842667,-1614.23,0.0002081,2]
[357493557,1744087842677,-409.2875185,0.0002081,2]
[357493559,1744087842687,-1617.77,0.0002081,2]
[357493561,1744087842696,-1063.14,0.0002081,2]
[357493563,1744087842706,-500.0,0.0002081,2]
[357493565,1744087842715,-500.0,0.0002081,2]
[357493566,1744087842725,-910.25,0.0002081,2]
[357493568,1744087842734,-500.0,0.0002081,2]
[357493570,1744087842744,-500.0,0.0002081,2]
[357493572,1744087842754,-1239.06,0.0002081,2]
[357493574,1744087842764,-500.0,0.0002081,2]
[357493577,1744087842773,-991.32,0.0002081,2]
[357493578,1744087842783,-1263.78,0.0002081,2]
[357493580,1744087842793,-500.0,0.0002081,2]
[357493582,1744087842803,-500.0,0.0002081,2]
[357493584,1744087842814,-960.96,0.0002081,2]
[357493586,1744087842824,-500.0,0.0002081,2]
[357493588,1744087842833,-500.0,0.0002081,2]
[357493590,1744087842843,-500.0,0.0002081,2]
[357493593,1744087842854,-500.0,0.0002081,2]
[357493594,1744087842864,-500.0,0.0002081,2]
[357493596,1744087842874,-500.0,0.0002081,2]
[357493598,1744087842890,-500.0,0.0002081,2]
[357493600,1744087842901,-500.0,0.0002081,2]
[357493603,1744087842912,-500.0,0.0002081,2]
[357493604,1744087842922,-500.0,0.0002081,2]
[357493607,1744087842932,-2443.44,0.0002081,2]
[357493609,1744087842942,-500.0,0.0002081,2]
[357493611,1744087842952,-500.0,0.0002081,2]
[357493613,1744087842962,-500.0,0.0002081,2]
[357493615,1744087842972,-500.0,0.0002081,2]
[357493616,1744087842982,-1686.94,0.0002081,2]
[357493618,1744087842992,-979.8,0.0002081,2]
[357493620,1744087843002,-500.0,0.0002081,2]
[357493623,1744087843012,-972.39,0.0002081,2]
[357493624,1744087843022,-500.0,0.0002081,2]
[357493626,1744087843031,-500.0,0.0002081,2]
[357493628,1744087843041,-922.59,0.0002081,2]
[357493630,1744087843050,-500.0,0.0002081,2]
[357493632,1744087843060,-1788.41,0.0002081,2]
[357493634,1744087843070,-500.0,0.0002081,2]
[357493636,1744087843081,-6746.79,0.0002081,2]
[357493638,1744087843094,-500.0,0.0002081,2]
[357493640,1744087843103,-1043.53,0.0002081,2]
[357493642,1744087843113,-681.08,0.0002081,2]
[357493645,1744087843125,-500.0,0.0002081,2]
[357493648,1744087843138,-734.76,0.0002081,2]
[357493651,1744087843148,-160.0,0.00020811,3]
[357493653,1744087843159,-160.0,0.00020811,3]
[357493655,1744087843169,-500.0,0.00020811,2]
[357493658,1744087843179,-500.0,0.00020811,2]
[357493661,1744087843188,-500.0,0.00020811,2]
[357493664,1744087843199,-500.0,0.00020811,2]
[357493667,1744087843210,-500.0,0.00020811,2]
[357493670,1744087843221,-500.0,0.00020811,2]
[357493673,1744087843231,-500.0,0.00020811,2]
[357493675,1744087843240,-500.0,0.00020811,2]
[357493676,1744087843251,-500.0,0.00020811,2]
[357493677,1744087843260,-500.0,0.00020811,2]
[357493678,1744087843270,-708.25,0.00020811,2]
[357493679,1744087843281,-857.15,0.00020811,2]
[357493680,1744087843291,-500.0,0.00020811,2]
[357493681,1744087843301,-500.0,0.00020811,2]
[357493682,1744087843311,-500.0,0.00020811,2]
[357493683,1744087843321,-500.0,0.00020811,2]
[357493684,1744087843330,-915.7,0.00020811,2]
[357493685,1744087843339,-500.0,0.00020811,2]
[357493686,1744087843349,-500.0,0.00020811,2]
[357493687,1744087843359,-500.0,0.00020811,2]
[357493688,1744087843368,-500.0,0.00020811,2]
[357493689,1744087843380,-503.39729275,0.00020811,2]
[357493690,1744087843389,-500.0,0.00020811,2]
[357493691,1744087843399,-500.0,0.00020811,2]
[357493692,1744087843409,-500.0,0.00020811,2]
[357493693,1744087843418,-500.0,0.00020811,2]
[357493694,1744087843427,-500.0,0.00020811,2]
[357493695,1744087843437,-500.0,0.00020811,2]
[357493696,1744087843446,-500.0,0.00020811,2]
[357493697,1744087843456,-500.0,0.00020811,2]
[357493698,1744087843465,-500.0,0.00020811,2]
[357493699,1744087843475,-500.0,0.00020811,2]
[357493700,1744087843485,-1081.61,0.00020811,2]
[357493701,1744087843494,-310.50306711,0.00020811,2]
[357493702,1744087843504,-500.0,0.00020811,2]
[357493703,1744087843514,-500.0,0.00020811,2]
[357493704,1744087843523,-882.13,0.00020811,2]
[357493705,1744087843533,-836.88,0.00020811,2]
[357493706,1744087843543,-553.71,0.00020811,2]
[357493707,1744087843552,-500.0,0.00020811,2]
[357493708,1744087843562,-500.0,0.00020811,2]
[357493710,1744087843571,-870.38,0.00020811,2]
[357493712,1744087843581,-500.0,0.00020811,2]
[357493714,1744087843590,-573.47850502,0.00020811,2]
[357493716,1744087843600,-966.82,0.00020811,2]
[357493718,1744087843609,-500.0,0.00020811,2]
[357493720,1744087843620,-958.48,0.00020811,2]
[357493722,1744087843631,-500.0,0.00020811,2]
[357493724,1744087843641,-500.0,0.00020811,2]
[357493726,1744087843651,-3050.94,0.00020811,2]
[357493728,1744087843661,-500.0,0.00020811,2]
[357493730,1744087843671,-500.0,0.00020811,2]
[357493732,1744087843680,-322.78356884,0.00020811,2]
[357493734,1744087843691,-500.0,0.00020811,2]
[357493736,1744087843701,-500.0,0.00020811,2]
[357493738,1744087843710,-500.0,0.00020811,2]
[357493740,1744087843719,-500.0,0.00020811,2]
[357493742,1744087843729,-500.0,0.00020811,2]
[357493744,1744087843738,-500.0,0.00020811,2]
[357493746,1744087843747,-533.18,0.00020811,2]
[357493748,1744087843756,-500.0,0.00020811,2]
[357493750,1744087843766,-500.0,0.00020811,2]
[357493752,1744087843776,-844.73,0.00020811,2]
[357493754,1744087843785,-235.22656,0.00020811,2]
[357493756,1744087843795,-1629.74,0.00020811,2]
[357493758,1744087843804,-500.0,0.00020811,2]
[357493760,1744087843813,-500.0,0.00020811,2]
[357493762,1744087843822,-500.0,0.00020811,2]
[357493763,1744087843831,-153.104009,0.00020811,2]
[357493765,1744087843841,-153.104009,0.00020811,2]
[357493767,1744087843851,-151.0,0.00020811,2]
[357493769,1744087843860,-151.0,0.00020811,2]
[357493771,1744087843869,-500.0,0.00020811,2]
[357493773,1744087843879,-151.0,0.00020811,2]
[357493775,1744087843888,-537.34,0.00020811,2]
[357493777,1744087843898,-171.722424,0.00020811,2]
[357493779,1744087843907,-171.722424,0.00020811,2]
[357493781,1744087843917,-900.42,0.00020811,2]
[357493782,1744087843927,-500.0,0.00020811,2]
[357493785,1744087843936,-1932.073419,0.00020811,2]
[357493786,1744087843946,-1932.073419,0.00020811,2]
[357493788,1744087843955,-500.0,0.00020811,2]
[357493790,1744087843965,-500.0,0.00020811,2]
[357493792,1744087843974,-500.0,0.00020811,2]
[357493794,1744087843984,-151.0,0.00020811,2]
[357493796,1744087843993,-151.0,0.00020811,2]
[357493798,1744087844003,-500.0,0.00020873,2]
[357493800,1744087844013,-339.59470037,0.00020873,2]
[357493802,1744087844022,-500.0,0.00020873,2]
[357493804,1744087844032,-500.32087333,0.00020873,2]
[357493806,1744087844041,-500.0,0.00020873,2]
[357493808,1744087844051,-500.0,0.00020873,2]
[357493810,1744087844060,-500.0,0.00020873,2]
[357493812,1744087844070,-501.92719262,0.00020873,2]
[357493814,1744087844082,-502.8704905,0.00020873,2]
[357493816,1744087844092,-500.54160199,0.00020873,2]
[357493818,1744087844101,-500.0,0.00020873,2]
[357493820,1744087844111,-501.02705968,0.00020873,2]
[357493822,1744087844120,-501.15278312,0.00020873,2]
[357493824,1744087844131,-169.81903703,0.00020873,2]
[357493826,1744087844140,-500.82919883,0.00020873,2]
[357493828,1744087844150,-500.0,0.00020873,2]
[357493830,1744087844162,-500.0,0.00020873,2]
[357493832,1744087844173,-500.73174425,0.00020873,2]
[357493834,1744087844183,-535.61244981,0.00020873,2]
[357493836,1744087844192,-500.0,0.00020873,2]
[357493838,1744087844202,-500.0,0.00020873,2]
[357493840,1744087844212,-500.0,0.00020873,2]
[357493842,1744087844222,-503.56205169,0.00020873,2]
[357493844,1744087844232,-500.0,0.00020873,2]
[357493846,1744087844242,-151.0,0.000209,3]
[357493848,1744087844251,-501.57120976,0.0002094,2]
[357493850,1744087844260,-500.0,0.0002094,2]
[357493852,1744087844270,-500.0,0.0002094,2]
[357493854,1744087844280,-500.0,0.0002094,2]
[357493856,1744087844289,-500.0,0.0002094,2]
[357493858,1744087844298,-500.0,0.0002094,2]
[357493860,1744087844307,-500.0,0.0002094,2]
[357493862,1744087844317,-514.07624978,0.0002094,2]
[357493864,1744087844326,-500.0,0.0002094,2]
[357493866,1744087844336,-531.34720337,0.0002094,2]
[357493868,1744087844345,-500.0,0.0002094,2]
[357493870,1744087844355,-500.0,0.0002094,2]
[357493872,1744087844364,-500.0,0.00020941,2]
[357493874,1744087844375,-500.0,0.00020941,2]
[357493876,1744087844386,-785.79,0.00020941,2]
[357493878,1744087844395,-500.0,0.00020941,2]
[357493880,1744087844405,-500.0,0.00020941,2]
[357493882,1744087844414,-500.0,0.00020941,2]
[357493884,1744087844424,-500.0,0.00020941,2]
[357493886,1744087844434,-415.60656253,0.00020985,2]
[357493888,1744087844443,-151.0,0.00021,4]
[357493890,1744087844453,-469.628847,0.00021067,2]
[357493892,1744087844462,-469.628847,0.00021067,2]
[357493894,1744087844472,-235.644486,0.00021067,2]
[357493896,1744087844482,-235.644486,0.00021067,2]
[357493898,1744087844491,-183.69513266,0.00021073,2]
[357493900,1744087844500,-501.4554662,0.00021073,2]
[357493902,1744087844510,-500.0,0.00021073,2]
[357493904,1744087844520,-500.0,0.00021082,2]
[357493906,1744087844529,-3144.01,0.00021082,2]
[357493908,1744087844539,-1236.86,0.00021082,2]
[357493910,1744087844548,-500.0,0.00021083,2]
[357493912,1744087844558,-227.70453301,0.00021083,2]
[357493914,1744087844568,-939.52,0.00021083,2]
[357493916,1744087844577,-500.0,0.00021083,2]
[357493918,1744087844587,-500.0,0.00021083,2]
[357493920,1744087844596,-500.0,0.00021083,2]
[357493922,1744087844606,-500.0,0.00021083,2]
[357493924,1744087844616,-1149.36,0.00021083,2]
[357493926,1744087844626,-500.0,0.00021083,2]
[357493928,1744087844637,-500.0,0.00021083,2]
[357493930,1744087844646,-634.74714463,0.00021083,2]
[357493932,1744087844655,-500.0,0.00021083,2]
[357493934,1744087844665,-3874.23,0.00021083,2]
[357493936,1744087844674,-1064.06,0.00021083,2]
[357493938,1744087844684,-500.0,0.00021083,2]
[357493940,1744087844694,-500.0,0.00021083,2]
[357493942,1744087844703,-500.0,0.00021083,2]
[357493944,1744087844713,-1472.0,0.00021083,2]
[357493946,1744087844723,-1466.85,0.00021083,2]
[357493948,1744087844732,-892.51,0.00021083,2]
[357493950,1744087844741,-500.0,0.00021083,2]
[357493952,1744087844750,-830.18,0.00021083,2]
[357493954,1744087844760,-2153.98,0.00021083,2]
[357493956,1744087844769,-500.0,0.00021083,2]
[357493958,1744087844779,-500.0,0.00021083,2]
[357493960,1744087844789,-534.8,0.00021083,2]
[357493962,1744087844799,-1442.99,0.00021083,2]
[357493964,1744087844808,-500.0,0.00021083,2]
[357493966,1744087844817,-1725.72,0.00021083,2]
[357493968,1744087844827,-500.0,0.00021083,2]
[357493970,1744087844836,-500.0,0.00021083,2]
[357493972,1744087844845,-500.0,0.00021084,2]
[357493974,1744087844855,-500.0,0.00021084,2]
[357493976,1744087844864,-503.38,0.00021084,2]
[357493978,1744087844873,-500.0,0.00021084,2]
[357493980,1744087844884,-500.0,0.00021084,2]
[357493982,1744087844894,-500.0,0.00021084,2]
[357493984,1744087844903,-500.0,0.00021084,2]
[357493986,1744087844913,-579.07,0.00021084,2]
[357493989,1744087844924,-671.91,0.00021084,2]
[357493991,1744087844933,-500.0,0.00021084,2]
[357493993,1744087844942,-500.0,0.00021084,2]
[357493994,1744087844952,-500.0,0.00021084,2]
[357493997,1744087844961,-500.0,0.00021084,2]
[357493998,1744087844971,-500.0,0.00021084,2]
[357494000,1744087844980,-500.0,0.00021084,2]
[357494002,1744087844989,-500.0,0.00021084,2]
[357494004,1744087844999,-500.0,0.00021084,2]
[357494006,1744087845009,-500.0,0.00021084,2]
[357494008,1744087845018,-500.0,0.00021084,2]
[357494010,1744087845028,-500.0,0.00021084,2]
[357494012,1744087845038,-500.0,0.00021084,2]
[357494014,1744087845047,-500.0,0.00021084,2]
[357494016,1744087845056,-1732.52,0.00021084,2]
[357494018,1744087845066,-2224.87,0.00021084,2]
[357494020,1744087845075,-1614.23,0.00021084,2]
[357494022,1744087845086,-1617.77,0.00021084,2]
[357494024,1744087845096,-1063.14,0.00021084,2]
[357494026,1744087845106,-500.0,0.00021084,2]
[357494028,1744087845115,-172.40849306,0.00021084,2]
[357494030,1744087845129,-910.25,0.00021084,2]
[357494032,1744087845138,-500.0,0.00021084,2]
[357494034,1744087845148,-1239.06,0.00021084,2]
[357494036,1744087845158,-500.0,0.00021084,2]
[357494038,1744087845167,-991.32,0.00021084,2]
[357494040,1744087845178,-1263.78,0.00021084,2]
[357494042,1744087845187,-500.0,0.00021084,2]
[357494044,1744087845198,-500.0,0.00021084,2]
[357494046,1744087845207,-960.96,0.00021084,2]
[357494048,1744087845217,-500.0,0.00021084,2]
[357494050,1744087845226,-500.0,0.00021084,2]
[357494052,1744087845236,-500.0,0.00021084,2]
[357494054,1744087845246,-500.0,0.00021084,2]
[357494056,1744087845256,-500.0,0.00021084,2]
[357494058,1744087845265,-500.0,0.00021084,2]
[357494060,1744087845277,-500.0,0.00021084,2]
[357494062,1744087845286,-500.0,0.00021084,2]
[357494064,1744087845297,-500.0,0.00021084,2]
[357494067,1744087845307,-500.0,0.00021084,2]
[357494068,1744087845318,-2443.44,0.00021084,2]
[357494070,1744087845328,-500.0,0.00021084,2]
[357494072,1744087845338,-500.0,0.00021084,2]
[357494074,1744087845348,-500.0,0.00021084,2]
[357494076,1744087845358,-500.0,0.00021084,2]
[357494079,1744087845367,-1686.94,0.00021084,2]
[357494080,1744087845378,-979.8,0.00021084,2]
[357494082,1744087845388,-500.0,0.00021084,2]
[357494084,1744087845397,-972.39,0.00021084,2]
[357494086,1744087845407,-500.0,0.00021084,2]
[357494088,1744087845416,-500.0,0.00021084,2]
[357494090,1744087845425,-922.59,0.00021084,2]
[357494092,1744087845434,-500.0,0.00021084,2]
[357494094,1744087845444,-1788.41,0.00021084,2]
[357494096,1744087845453,-500.0,0.00021084,2]
[357494098,1744087845463,-6746.79,0.00021084,2]
[357494100,1744087845472,-500.0,0.00021084,2]
[357494102,1744087845482,-1043.53,0.00021084,2]
[357494104,1744087845491,-681.08,0.00021084,2]
[357494106,1744087845501,-500.0,0.00021084,2]
[357494108,1744087845511,-734.76,0.00021084,2]
[357494110,1744087845520,-463.79323441,0.00021085,2]
[357494112,1744087845530,-500.0,0.00021085,2]
[357494130,1744087845682,-541.58701715,0.00021085,2]
[357494132,1744087845693,-500.0,0.00021085,2]
[357494134,1744087845703,-500.0,0.00021085,2]
[357494136,1744087845712,-500.0,0.00021085,2]
[357494138,1744087845721,-500.0,0.00021085,2]
[357494140,1744087845731,-500.0,0.00021085,2]
[357494142,1744087845740,-500.0,0.00021085,2]
[357494144,1744087845749,-708.25,0.00021085,2]
[357494146,1744087845759,-857.15,0.00021085,2]
[357494148,1744087845768,-500.0,0.00021085,2]
[357494150,1744087845777,-500.0,0.00021085,2]
[357494152,1744087845787,-363.66530971,0.00021085,2]
[357494154,1744087845796,-915.7,0.00021085,2]
[357494156,1744087845805,-500.0,0.00021085,2]